[Event "Live Chess"]
[Site "Chess.com"]
[Date "2024.06.02"]
[Round "-"]
[White "ameetghasi100"]
[Black "MagnersCarlsberg2870"]
[Result "1-0"]
[WhiteElo "2793"]
[BlackElo "1812"]
[TimeControl "300"]
[EndTime "2:30:22 PDT"]
[Termination "ameetghasi100 won by resignation"]

1. d4 {[%clk 0:04:58.2]} 1... Nf6 {[%clk 0:04:56.6]} 2. c3 {[%clk 0:04:58.1]}
2... b6 {[%clk 0:04:54.2]} 3. Nf3 {[%clk 0:04:58]} 3... Bb7 {[%clk 0:04:53.1]}
4. g3 {[%clk 0:04:54]} 4... d6 {[%clk 0:04:50.6]} 5. Bg2 {[%clk 0:04:53.3]} 5...
g6 {[%clk 0:04:49.1]} 6. Nh4 {[%clk 0:04:51.2]} 6... Bxg2 {[%clk 0:04:46.6]} 7.
Nxg2 {[%clk 0:04:51.1]} 7... d5 {[%clk 0:04:43.7]} 8. O-O {[%clk 0:04:51]} 8...
h5 {[%clk 0:04:41.6]} 9. Re1 {[%clk 0:04:50.9]} 9... h4 {[%clk 0:04:40.3]} 10.
Nd2 {[%clk 0:04:50.8]} 10... hxg3 {[%clk 0:04:39]} 11. hxg3 {[%clk 0:04:48.6]}
11... Ng4 {[%clk 0:04:35.6]} 12. e4 {[%clk 0:04:43.7]} 12... Qd7 {[%clk
0:04:27.9]} 13. e5 {[%clk 0:04:31.7]} 13... Qf5 {[%clk 0:04:15.3]} 14. f3 {[%clk
0:04:01.3]} 14... Qh5 {[%clk 0:04:06.6]} 15. fxg4 {[%clk 0:03:57.9]} 15... Qh2+
{[%clk 0:04:04.8]} 16. Kf2 {[%clk 0:03:56.9]} 16... Rh3 {[%clk 0:03:45.3]} 17.
Nf1 {[%clk 0:03:50.8]} 17... Qh1 {[%clk 0:03:38.4]} 18. e6 {[%clk 0:03:46.9]}
18... f6 {[%clk 0:03:36.7]} 19. Qd3 {[%clk 0:03:42.3]} 19... Nc6 {[%clk
0:03:16.3]} 20. Qxg6+ {[%clk 0:03:40.2]} 20... Kd8 {[%clk 0:03:15.4]} 21. Bf4
{[%clk 0:03:39.8]} 21... Na5 {[%clk 0:02:51.6]} 22. Nd2 {[%clk 0:03:37.7]} 22...
Qh2 {[%clk 0:02:48.9]} 23. Nf3 {[%clk 0:03:37.1]} 23... Nc4 {[%clk 0:02:41.3]}
24. Nxh2 {[%clk 0:03:35.5]} 24... Rxh2 {[%clk 0:02:39.2]} 25. Qg8 {[%clk
0:03:35.1]} 1-0

[Event "Live Chess"]
[Site "Chess.com"]
[Date "2024.06.02"]
[Round "-"]
[White "dmitro74"]
[Black "friarnator"]
[Result "0-1"]
[WhiteElo "1731"]
[BlackElo "2189"]
[TimeControl "300"]
[EndTime "2:30:33 PDT"]
[Termination "friarnator won on time"]

1. d4 {[%clk 0:04:57.9]} 1... Nf6 {[%clk 0:04:57.7]} 2. c4 {[%clk 0:04:56.5]}
2... e5 {[%clk 0:04:56.1]} 3. dxe5 {[%clk 0:04:53.3]} 3... Ng4 {[%clk
0:04:55.3]} 4. Nf3 {[%clk 0:04:52.1]} 4... Nc6 {[%clk 0:04:54.4]} 5. Nc3 {[%clk
0:04:42.8]} 5... Ngxe5 {[%clk 0:04:43.4]} 6. Nxe5 {[%clk 0:04:41.1]} 6... Nxe5
{[%clk 0:04:43.3]} 7. e4 {[%clk 0:04:37.8]} 7... g6 {[%clk 0:04:41.6]} 8. Bf4
{[%clk 0:04:34.9]} 8... Bg7 {[%clk 0:04:39.5]} 9. Be2 {[%clk 0:04:28.8]} 9...
O-O {[%clk 0:04:37.4]} 10. O-O {[%clk 0:04:26.7]} 10... d6 {[%clk 0:04:36.7]}
11. Qc2 {[%clk 0:04:17.7]} 11... Be6 {[%clk 0:04:35.3]} 12. b3 {[%clk
0:04:13.6]} 12... a6 {[%clk 0:04:27.2]} 13. Rad1 {[%clk 0:04:10]} 13... Qe7
{[%clk 0:03:29]} 14. Rfe1 {[%clk 0:04:01.1]} 14... h6 {[%clk 0:03:24.2]} 15. Bg3
{[%clk 0:03:59.1]} 15... Nc6 {[%clk 0:03:19.1]} 16. Nd5 {[%clk 0:03:46.4]} 16...
Bxd5 {[%clk 0:03:16.2]} 17. exd5 {[%clk 0:03:44.1]} 17... Nd4 {[%clk 0:03:14.1]}
18. Qd2 {[%clk 0:03:32.1]} 18... Nxe2+ {[%clk 0:03:04.6]} 19. Rxe2 {[%clk
0:03:29.9]} 19... Qf6 {[%clk 0:03:03.2]} 20. Rde1 {[%clk 0:03:26.7]} 20... g5
{[%clk 0:03:01.8]} 21. h3 {[%clk 0:03:16.9]} 21... Qd4 {[%clk 0:02:56.5]} 22.
Qxd4 {[%clk 0:03:08.2]} 22... Bxd4 {[%clk 0:02:56.4]} 23. Re7 {[%clk 0:03:06.1]}
23... Bb6 {[%clk 0:02:53.2]} 24. Rd7 {[%clk 0:02:53]} 24... Rae8 {[%clk
0:02:48.9]} 25. Ree7 {[%clk 0:02:46.1]} 25... Rxe7 {[%clk 0:02:45.5]} 26. Rxe7
{[%clk 0:02:44.2]} 26... Kg7 {[%clk 0:02:45.4]} 27. Kf1 {[%clk 0:02:31]} 27...
Kg6 {[%clk 0:02:41.8]} 28. f4 {[%clk 0:02:27]} 28... f5 {[%clk 0:02:39.7]} 29.
fxg5 {[%clk 0:02:18.8]} 29... hxg5 {[%clk 0:02:39.6]} 30. h4 {[%clk 0:02:09.7]}
30... f4 {[%clk 0:02:31.7]} 31. Be1 {[%clk 0:02:04.5]} 31... g4 {[%clk
0:02:26.7]} 32. Bf2 {[%clk 0:01:52.4]} 32... Ba5 {[%clk 0:02:15.9]} 33. a3
{[%clk 0:01:39.5]} 33... f3 {[%clk 0:02:06.4]} 34. b4 {[%clk 0:01:32.7]} 34...
Bb6 {[%clk 0:01:47.3]} 35. Bxb6 {[%clk 0:01:30.8]} 35... cxb6 {[%clk 0:01:47.2]}
36. Rxb7 {[%clk 0:01:27.7]} 36... f2 {[%clk 0:01:30.2]} 37. g3 {[%clk
0:01:24.9]} 37... Rf3 {[%clk 0:01:17.2]} 38. Rxb6 {[%clk 0:01:22.3]} 38... Rxg3
{[%clk 0:01:13.2]} 39. Kxf2 {[%clk 0:01:12.2]} 39... Rxa3 {[%clk 0:01:05]} 40.
Rxd6+ {[%clk 0:01:09.9]} 40... Kf5 {[%clk 0:01:03.3]} 41. Rd8 {[%clk 0:01:06]}
41... Ra2+ {[%clk 0:00:54.9]} 42. Kg3 {[%clk 0:01:02.3]} 42... Ra3+ {[%clk
0:00:54.5]} 43. Kg2 {[%clk 0:01:00.5]} 43... Kf4 {[%clk 0:00:49.2]} 44. Rf8+
{[%clk 0:00:56.3]} 44... Ke5 {[%clk 0:00:48.5]} 45. Rg8 {[%clk 0:00:52.4]} 45...
Kf4 {[%clk 0:00:43.8]} 46. Rf8+ {[%clk 0:00:44.6]} 46... Ke5 {[%clk 0:00:37.1]}
47. h5 {[%clk 0:00:42.1]} 47... Rh3 {[%clk 0:00:32.3]} 48. Ra8 {[%clk
0:00:29.1]} 48... Rxh5 {[%clk 0:00:26.3]} 49. Kg3 {[%clk 0:00:23.9]} 49... Rh6
{[%clk 0:00:19.6]} 50. Kxg4 {[%clk 0:00:17.8]} 50... Kd4 {[%clk 0:00:19.2]} 51.
Rc8 {[%clk 0:00:15.6]} 51... Kc3 {[%clk 0:00:16.7]} 52. c5 {[%clk 0:00:13.4]}
52... Kxb4 {[%clk 0:00:12]} 53. d6 {[%clk 0:00:12.5]} 53... Rh7 {[%clk
0:00:09.5]} 54. c6 {[%clk 0:00:11.2]} 54... Rg7+ {[%clk 0:00:09.4]} 55. Kf5
{[%clk 0:00:10]} 55... Rf7+ {[%clk 0:00:08.8]} 56. Ke6 {[%clk 0:00:09.3]} 56...
Rf1 {[%clk 0:00:07.6]} 57. Rb8+ {[%clk 0:00:07.5]} 57... Kc5 {[%clk 0:00:06.3]}
58. c7 {[%clk 0:00:06.4]} 58... Re1+ {[%clk 0:00:04.5]} 59. Kd7 {[%clk
0:00:05.3]} 59... Rd1 {[%clk 0:00:03]} 60. c8=Q+ {[%clk 0:00:03.6]} 60... Kd5
{[%clk 0:00:02.9]} 61. Qxa6 {[%clk 0:00:01.8]} 61... Ke4 {[%clk 0:00:02.8]} 62.
Qe2+ {[%clk 0:00:00.2]} 62... Kf5 {[%clk 0:00:01.5]} 0-1

[Event "Live Chess"]
[Site "Chess.com"]
[Date "2024.06.02"]
[Round "-"]
[White "AlanBstard10"]
[Black "JohanKjeldahl"]
[Result "0-1"]
[WhiteElo "1233"]
[BlackElo "1806"]
[TimeControl "300"]
[EndTime "2:30:35 PDT"]
[Termination "JohanKjeldahl won by resignation"]

1. b4 {[%clk 0:04:57.4]} 1... e5 {[%clk 0:04:54]} 2. Bb2 {[%clk 0:04:56.7]} 2...
d6 {[%clk 0:04:53.1]} 3. a3 {[%clk 0:04:55.1]} 3... Nf6 {[%clk 0:04:51.9]} 4. c4
{[%clk 0:04:54.6]} 4... Be7 {[%clk 0:04:48.7]} 5. e3 {[%clk 0:04:54]} 5... O-O
{[%clk 0:04:47.4]} 6. Be2 {[%clk 0:04:53.6]} 6... a5 {[%clk 0:04:46.3]} 7. d3
{[%clk 0:04:52.7]} 7... Be6 {[%clk 0:04:42.3]} 8. b5 {[%clk 0:04:50.4]} 8...
Nbd7 {[%clk 0:04:39.2]} 9. Nf3 {[%clk 0:04:49.2]} 9... h6 {[%clk 0:04:36.2]} 10.
O-O {[%clk 0:04:48.2]} 10... Nh7 {[%clk 0:04:30.6]} 11. Nbd2 {[%clk 0:04:47.7]}
11... f5 {[%clk 0:04:29.4]} 12. e4 {[%clk 0:04:46]} 12... f4 {[%clk 0:04:25.3]}
13. Ne1 {[%clk 0:04:44.7]} 13... Ndf6 {[%clk 0:04:22.7]} 14. Ndf3 {[%clk
0:04:44.2]} 14... g5 {[%clk 0:04:20.7]} 15. h3 {[%clk 0:04:43]} 15... Qd7 {[%clk
0:04:17.1]} 16. Nc2 {[%clk 0:04:41.2]} 16... Bxh3 {[%clk 0:04:14.3]} 17. gxh3
{[%clk 0:04:39.6]} 17... Qxh3 {[%clk 0:04:13.1]} 18. Nh2 {[%clk 0:04:34.6]}
18... Kh8 {[%clk 0:04:03.2]} 19. Kh1 {[%clk 0:04:33.7]} 19... g4 {[%clk
0:04:01.4]} 20. Rg1 {[%clk 0:04:22.7]} 20... g3 {[%clk 0:03:58.4]} 21. fxg3
{[%clk 0:04:19.7]} 21... fxg3 {[%clk 0:03:57.4]} 22. Rg2 {[%clk 0:04:09.9]}
22... Ng5 {[%clk 0:03:44.9]} 23. Qf1 {[%clk 0:04:03.2]} 23... h5 {[%clk
0:03:31.2]} 24. Ne1 {[%clk 0:04:01.6]} 24... Ng4 {[%clk 0:03:21.9]} 25. Nf3
{[%clk 0:03:56.9]} 25... Nxf3 {[%clk 0:03:14.4]} 26. Bxf3 {[%clk 0:03:50.8]}
26... gxh2 {[%clk 0:03:01]} 27. Rg3 {[%clk 0:03:37.5]} 27... Qxg3 {[%clk
0:02:58.5]} 28. Bxe5+ {[%clk 0:03:21.9]} 28... dxe5 {[%clk 0:02:48.9]} 29. Ra2
{[%clk 0:02:50.8]} 29... Rxf3 {[%clk 0:02:45.3]} 30. Rg2 {[%clk 0:02:49]} 0-1

[Event "Live Chess"]
[Site "Chess.com"]
[Date "2024.06.02"]
[Round "-"]
[White "CheckThis4"]
[Black "Delacorta"]
[Result "1-0"]
[WhiteElo "2696"]
[BlackElo "1521"]
[TimeControl "300"]
[EndTime "2:30:45 PDT"]
[Termination "CheckThis4 won by resignation"]

1. d4 {[%clk 0:04:58.2]} 1... e6 {[%clk 0:04:56.7]} 2. Nc3 {[%clk 0:04:58.1]}
2... f5 {[%clk 0:04:55.9]} 3. e4 {[%clk 0:04:57.2]} 3... fxe4 {[%clk 0:04:53.9]}
4. Nxe4 {[%clk 0:04:55.8]} 4... Nf6 {[%clk 0:04:50.9]} 5. Bg5 {[%clk 0:04:53.8]}
5... Be7 {[%clk 0:04:49.5]} 6. Bxf6 {[%clk 0:04:48.3]} 6... Bxf6 {[%clk
0:04:45.3]} 7. Nf3 {[%clk 0:04:34.6]} 7... O-O {[%clk 0:04:40.6]} 8. Bd3 {[%clk
0:04:32.8]} 8... d5 {[%clk 0:04:37.7]} 9. Nxf6+ {[%clk 0:04:26.8]} 9... Qxf6
{[%clk 0:04:30.6]} 10. O-O {[%clk 0:04:20.3]} 10... Nd7 {[%clk 0:04:23.6]} 11.
Re1 {[%clk 0:04:17.2]} 11... Nb6 {[%clk 0:04:09.4]} 12. c3 {[%clk 0:04:12.3]}
12... Nc4 {[%clk 0:04:07.5]} 13. Qc2 {[%clk 0:04:09.7]} 13... g6 {[%clk
0:04:02.3]} 14. Ne5 {[%clk 0:04:01.3]} 14... Nxe5 {[%clk 0:03:57.3]} 15. Rxe5
{[%clk 0:04:01.2]} 15... Bd7 {[%clk 0:03:41.4]} 16. Rae1 {[%clk 0:03:59.6]}
16... Ba4 {[%clk 0:03:30.7]} 17. b3 {[%clk 0:03:51.3]} 17... Bd7 {[%clk
0:03:25.7]} 18. R1e3 {[%clk 0:03:49.6]} 18... Rae8 {[%clk 0:03:13]} 19. Rg3
{[%clk 0:03:46.3]} 19... Re7 {[%clk 0:02:51.6]} 20. Bxg6 {[%clk 0:03:39.5]}
20... Rg7 {[%clk 0:02:33.1]} 21. Bxh7+ {[%clk 0:03:37]} 21... Kh8 {[%clk
0:02:32.3]} 22. Bd3 {[%clk 0:03:32]} 22... Rxg3 {[%clk 0:02:30.2]} 23. hxg3
{[%clk 0:03:30.4]} 1-0

[Event "Live Chess"]
[Site "Chess.com"]
[Date "2024.06.02"]
[Round "-"]
[White "vincents82"]
[Black "matt1979"]
[Result "1-0"]
[WhiteElo "1985"]
[BlackElo "1406"]
[TimeControl "300"]
[EndTime "2:30:56 PDT"]
[Termination "vincents82 won by checkmate"]

1. e4 {[%clk 0:04:56.1]} 1... d6 {[%clk 0:04:57.7]} 2. d4 {[%clk 0:04:55.2]}
2... Nf6 {[%clk 0:04:56]} 3. Nc3 {[%clk 0:04:54.5]} 3... Nbd7 {[%clk 0:04:54.5]}
4. Nf3 {[%clk 0:04:53.9]} 4... e5 {[%clk 0:04:53.6]} 5. Be2 {[%clk 0:04:51.5]}
5... Be7 {[%clk 0:04:50.1]} 6. Be3 {[%clk 0:04:50.5]} 6... c6 {[%clk 0:04:47.9]}
7. Qd2 {[%clk 0:04:49.7]} 7... Qc7 {[%clk 0:04:46.6]} 8. O-O-O {[%clk
0:04:48.6]} 8... h6 {[%clk 0:04:44.5]} 9. Kb1 {[%clk 0:04:44.3]} 9... b6 {[%clk
0:04:40.8]} 10. Nh4 {[%clk 0:04:42.4]} 10... Nf8 {[%clk 0:04:28.6]} 11. Nf5
{[%clk 0:04:41]} 11... Bxf5 {[%clk 0:04:04.7]} 12. exf5 {[%clk 0:04:39.9]} 12...
O-O-O {[%clk 0:04:00]} 13. d5 {[%clk 0:04:37.4]} 13... c5 {[%clk 0:03:57.5]} 14.
Nb5 {[%clk 0:04:36]} 14... Qb7 {[%clk 0:03:51.3]} 15. Bc4 {[%clk 0:04:30.4]}
15... a6 {[%clk 0:03:41.7]} 16. Nc3 {[%clk 0:04:28.6]} 16... b5 {[%clk 0:03:36]}
17. Be2 {[%clk 0:04:27.4]} 17... N8d7 {[%clk 0:02:58.2]} 18. f3 {[%clk
0:04:24.3]} 18... Nb6 {[%clk 0:02:46.8]} 19. Ne4 {[%clk 0:04:21.6]} 19... Nxe4
{[%clk 0:02:44.1]} 20. fxe4 {[%clk 0:04:20.4]} 20... Nd7 {[%clk 0:02:30.9]} 21.
Qa5 {[%clk 0:04:16.8]} 21... Qb6 {[%clk 0:02:26.2]} 22. Qd2 {[%clk 0:04:15]}
22... Kc7 {[%clk 0:02:20.5]} 23. h4 {[%clk 0:04:13.6]} 23... Rb8 {[%clk
0:02:16.5]} 24. g4 {[%clk 0:04:12.1]} 24... a5 {[%clk 0:02:07]} 25. g5 {[%clk
0:04:10.8]} 25... hxg5 {[%clk 0:02:04.4]} 26. hxg5 {[%clk 0:04:09.6]} 26... Rxh1
{[%clk 0:02:03.1]} 27. Rxh1 {[%clk 0:04:08.4]} 27... b4 {[%clk 0:01:49.9]} 28.
Rh7 {[%clk 0:04:01.8]} 28... Bf8 {[%clk 0:01:48.1]} 29. f6 {[%clk 0:03:57.7]}
29... gxf6 {[%clk 0:01:44.3]} 30. Rxf7 {[%clk 0:03:54.4]} 30... a4 {[%clk
0:01:40.9]} 31. Bg4 {[%clk 0:03:52.5]} 31... Qb5 {[%clk 0:01:35.6]} 32. Rxd7+
{[%clk 0:03:47.5]} 32... Kb6 {[%clk 0:01:26.1]} 33. Be2 {[%clk 0:03:41]} 33...
Qa5 {[%clk 0:01:24]} 34. g6 {[%clk 0:03:35.3]} 34... a3 {[%clk 0:01:21.5]} 35.
g7 {[%clk 0:03:30.8]} 35... Bxg7 {[%clk 0:01:19.2]} 36. Rxg7 {[%clk 0:03:28]}
36... axb2 {[%clk 0:01:18.2]} 37. Bc4 {[%clk 0:03:15.5]} 37... Ra8 {[%clk
0:01:02.8]} 38. Bb3 {[%clk 0:03:03.1]} 38... Qb5 {[%clk 0:00:56.4]} 39. Qd3
{[%clk 0:03:00.6]} 39... Qa5 {[%clk 0:00:53.3]} 40. Qf1 {[%clk 0:02:56.6]} 40...
Qa3 {[%clk 0:00:47.5]} 41. Qxf6 {[%clk 0:02:53.6]} 41... Kb5 {[%clk 0:00:41.8]}
42. Qxd6 {[%clk 0:02:44.4]} 42... c4 {[%clk 0:00:40]} 43. Qb6# {[%clk
0:02:37.6]} 1-0

[Event "Live Chess"]
[Site "Chess.com"]
[Date "2024.06.02"]
[Round "-"]
[White "Frankie_Badacsonyi"]
[Black "elis06"]
[Result "1/2-1/2"]
[WhiteElo "2408"]
[BlackElo "2188"]
[TimeControl "300"]
[EndTime "2:30:59 PDT"]
[Termination "Game drawn by agreement"]

1. e4 {[%clk 0:04:58.1]} 1... c6 {[%clk 0:04:58]} 2. Nf3 {[%clk 0:04:55]} 2...
d5 {[%clk 0:04:57.3]} 3. d3 {[%clk 0:04:54.6]} 3... dxe4 {[%clk 0:04:53.4]} 4.
dxe4 {[%clk 0:04:54.5]} 4... Qxd1+ {[%clk 0:04:52.1]} 5. Kxd1 {[%clk 0:04:54.4]}
5... Nd7 {[%clk 0:04:50.7]} 6. a4 {[%clk 0:04:42.8]} 6... e5 {[%clk 0:04:46.6]}
7. Nfd2 {[%clk 0:04:35.3]} 7... Ngf6 {[%clk 0:04:44.9]} 8. f3 {[%clk 0:04:34.2]}
8... Be7 {[%clk 0:04:40]} 9. Bc4 {[%clk 0:04:32.8]} 9... O-O {[%clk 0:04:36.2]}
10. Ke2 {[%clk 0:04:28.3]} 10... a5 {[%clk 0:04:33.6]} 11. Nf1 {[%clk
0:04:15.9]} 11... Nc5 {[%clk 0:04:29.4]} 12. Be3 {[%clk 0:04:09.4]} 12... Be6
{[%clk 0:04:22.4]} 13. Nbd2 {[%clk 0:04:02.8]} 13... Nfd7 {[%clk 0:03:58.5]} 14.
Bxe6 {[%clk 0:03:55]} 14... Nxe6 {[%clk 0:03:57.1]} 15. c3 {[%clk 0:03:53.9]}
15... f6 {[%clk 0:03:47.2]} 16. Nc4 {[%clk 0:03:52.7]} 16... Kf7 {[%clk
0:03:45.4]} 17. Nfd2 {[%clk 0:03:47.9]} 17... Ndc5 {[%clk 0:03:42.8]} 18. Rhd1
{[%clk 0:03:37.8]} 18... Rfd8 {[%clk 0:03:38.9]} 19. Nf1 {[%clk 0:03:25.1]}
19... Nb3 {[%clk 0:03:29.1]} 20. Rxd8 {[%clk 0:03:18.4]} 20... Rxd8 {[%clk
0:03:24.5]} 21. Rd1 {[%clk 0:03:17.1]} 21... Rxd1 {[%clk 0:03:17.2]} 22. Kxd1
{[%clk 0:03:17]} 22... b5 {[%clk 0:03:12.6]} 23. axb5 {[%clk 0:03:08.6]} 23...
cxb5 {[%clk 0:03:12.5]} 24. Ncd2 {[%clk 0:03:08]} 24... Nbc5 {[%clk 0:03:08.8]}
25. Kc2 {[%clk 0:03:04.7]} 25... Ke8 {[%clk 0:03:07]} 26. Nb3 {[%clk 0:03:00.4]}
26... Nxb3 {[%clk 0:03:02.9]} 27. Kxb3 {[%clk 0:03:00.3]} 27... Kd7 {[%clk
0:03:02.2]} 28. Nd2 {[%clk 0:02:58.3]} 28... Kc6 {[%clk 0:03:01.1]} 29. Kc2
{[%clk 0:02:51.6]} 29... Bc5 {[%clk 0:02:49.1]} 30. Nf1 {[%clk 0:02:48.7]} 30...
Bd6 {[%clk 0:02:35.6]} 31. Bd2 {[%clk 0:02:38.8]} 31... g6 {[%clk 0:02:28.7]}
32. Ne3 {[%clk 0:02:36.2]} 32... Nc7 {[%clk 0:02:25.5]} 33. Kd3 {[%clk
0:02:25.8]} 33... h5 {[%clk 0:02:20.8]} 34. Kc2 {[%clk 0:02:16.9]} 34... Be7
{[%clk 0:02:18.8]} 35. Be1 {[%clk 0:02:14.3]} 35... Bc5 {[%clk 0:02:17]} 36. Bd2
{[%clk 0:02:09.4]} 36... Bxe3 {[%clk 0:02:06.4]} 37. Bxe3 {[%clk 0:02:09.3]}
37... Ne6 {[%clk 0:02:02.9]} 38. Kd3 {[%clk 0:02:03.5]} 38... a4 {[%clk
0:01:58.6]} 39. Kc2 {[%clk 0:01:56.1]} 39... Nc5 {[%clk 0:01:53.3]} 40. Bd2
{[%clk 0:01:46.9]} 40... Ne6 {[%clk 0:01:50.3]} 1/2-1/2

[Event "Live Chess"]
[Site "Chess.com"]
[Date "2024.06.02"]
[Round "-"]
[White "bill77678"]
[Black "blunderabit"]
[Result "1-0"]
[WhiteElo "1846"]
[BlackElo "1752"]
[TimeControl "300"]
[EndTime "2:31:15 PDT"]
[Termination "bill77678 won by resignation"]

1. e4 {[%clk 0:04:58.2]} 1... c5 {[%clk 0:04:57.5]} 2. Nc3 {[%clk 0:04:56.5]}
2... Nc6 {[%clk 0:04:52.9]} 3. f4 {[%clk 0:04:55.6]} 3... g6 {[%clk 0:04:50.6]}
4. Nf3 {[%clk 0:04:54.2]} 4... Bg7 {[%clk 0:04:50.1]} 5. a4 {[%clk 0:04:52.6]}
5... Nh6 {[%clk 0:04:44.6]} 6. Bb5 {[%clk 0:04:20.7]} 6... Nd4 {[%clk
0:04:40.6]} 7. O-O {[%clk 0:04:17.8]} 7... a6 {[%clk 0:04:37.8]} 8. Bc4 {[%clk
0:04:16.4]} 8... e6 {[%clk 0:04:14.9]} 9. e5 {[%clk 0:04:14.9]} 9... d5 {[%clk
0:04:12.8]} 10. exd6 {[%clk 0:04:09.5]} 10... Nhf5 {[%clk 0:04:10.7]} 11. d3
{[%clk 0:03:52.7]} 11... Nxd6 {[%clk 0:04:07.4]} 12. Ba2 {[%clk 0:03:49]} 12...
O-O {[%clk 0:04:04.7]} 13. Ne4 {[%clk 0:03:39]} 13... b6 {[%clk 0:03:52.2]} 14.
c3 {[%clk 0:03:35]} 14... Nxf3+ {[%clk 0:03:49]} 15. Qxf3 {[%clk 0:03:34.9]}
15... Bb7 {[%clk 0:03:46.3]} 16. Qe2 {[%clk 0:03:17.3]} 16... Qc7 {[%clk
0:03:20.2]} 17. Ng5 {[%clk 0:03:11.8]} 17... Rfe8 {[%clk 0:03:13.2]} 18. Bd2
{[%clk 0:03:00.9]} 18... Bd5 {[%clk 0:03:06.4]} 19. Bxd5 {[%clk 0:02:43.1]}
19... exd5 {[%clk 0:03:04.7]} 20. Qf3 {[%clk 0:02:38.5]} 20... d4 {[%clk
0:03:03.2]} 21. Rae1 {[%clk 0:02:34.6]} 21... h6 {[%clk 0:02:35.3]} 22. Ne4
{[%clk 0:02:31.4]} 22... Qc6 {[%clk 0:02:14.6]} 23. Nxd6 {[%clk 0:02:19.3]}
23... Qxf3 {[%clk 0:02:12.4]} 24. Rxe8+ {[%clk 0:02:12.1]} 24... Rxe8 {[%clk
0:02:10.6]} 25. Rxf3 {[%clk 0:02:08.3]} 25... Rd8 {[%clk 0:01:50.6]} 26. Ne4
{[%clk 0:02:02.1]} 26... f5 {[%clk 0:01:47.5]} 27. Ng3 {[%clk 0:01:53.3]} 27...
Kf7 {[%clk 0:01:34.4]} 28. Ne2 {[%clk 0:01:37.9]} 28... dxc3 {[%clk 0:01:16.6]}
29. Bxc3 {[%clk 0:01:35.8]} 29... Bxc3 {[%clk 0:01:13.9]} 30. bxc3 {[%clk
0:01:34.2]} 30... Re8 {[%clk 0:01:04.1]} 31. Kf2 {[%clk 0:01:31.7]} 31... Re6
{[%clk 0:01:02.2]} 32. Re3 {[%clk 0:01:28.8]} 1-0

[Event "Live Chess"]
[Site "Chess.com"]
[Date "2024.06.02"]
[Round "-"]
[White "missedJariChance"]
[Black "juniortay"]
[Result "0-1"]
[WhiteElo "1347"]
[BlackElo "2371"]
[TimeControl "300"]
[EndTime "2:31:28 PDT"]
[Termination "juniortay won by resignation"]

1. b3 {[%clk 0:04:55.9]} 1... e5 {[%clk 0:04:58.5]} 2. Bb2 {[%clk 0:04:53.5]}
2... Nc6 {[%clk 0:04:57.5]} 3. e3 {[%clk 0:04:51.5]} 3... Nf6 {[%clk 0:04:56.4]}
4. Nf3 {[%clk 0:04:49.9]} 4... Bd6 {[%clk 0:04:55]} 5. d4 {[%clk 0:04:46.2]}
5... e4 {[%clk 0:04:53.5]} 6. Nfd2 {[%clk 0:04:44.5]} 6... O-O {[%clk
0:04:52.2]} 7. c4 {[%clk 0:04:42.8]} 7... Bb4 {[%clk 0:04:50.6]} 8. Nc3 {[%clk
0:04:40]} 8... Re8 {[%clk 0:04:48.8]} 9. Be2 {[%clk 0:04:38.5]} 9... d5 {[%clk
0:04:44.1]} 10. cxd5 {[%clk 0:04:35.2]} 10... Ne7 {[%clk 0:04:43]} 11. a3 {[%clk
0:04:28.2]} 11... Bxc3 {[%clk 0:04:41.6]} 12. Bxc3 {[%clk 0:04:26]} 12... Nexd5
{[%clk 0:04:40.8]} 13. Bb2 {[%clk 0:04:23.7]} 13... c6 {[%clk 0:04:36.6]} 14.
Rc1 {[%clk 0:04:14.9]} 14... Qd6 {[%clk 0:04:35.3]} 15. O-O {[%clk 0:04:10]}
15... h5 {[%clk 0:04:32.5]} 16. Bxh5 {[%clk 0:03:47.2]} 16... g6 {[%clk
0:04:31.3]} 17. Be2 {[%clk 0:03:42.6]} 17... Kg7 {[%clk 0:04:30.2]} 18. Bc4
{[%clk 0:03:18.7]} 18... Rh8 {[%clk 0:04:20.7]} 19. h3 {[%clk 0:03:02]} 19...
Bxh3 {[%clk 0:04:14.8]} 20. f4 {[%clk 0:02:53.4]} 0-1